bitfinex-derivatives/quotes_ETHF0:USTF0_20250326
["timestamp","ask_amount","ask_price","bid_price","bid_amount"]
[1743016336203,1.00591,1988.0,1987.9,4.22126996]
[1743016336416,3.02881,1988.0,1987.9,1.01346996]
[1743016337313,2.0229,1988.0,1987.9,1.01346996]
[1743016337509,1.00589,1988.1,1988.0,1.00591]
[1743016337710,3.02879,1988.1,1988.0,1.00591]
[1743016338622,1.00591,1988.0,1987.9,2.94904996]
[1743016338821,3.02881,1988.0,1987.9,2.94904996]
[1743016339118,0.00753996,1988.2,1988.1,1.00586]
[1743016340115,1.01334996,1988.2,1988.1,1.00586]
[1743016340319,2.95324996,1988.2,1988.1,1.00586]
[1743016340516,0.00753996,1988.2,1988.1,4.21366]
[1743016341021,1.9399,1988.6,1988.5,1.00566]
[1743016341324,1.9399,1988.6,1988.5,4.21346]
[1743016341524,1.9399,1988.6,1988.3,2.5144]
[1743016341525,1.00557,1988.7,1988.6,1.00558]
[1743016341717,2.94547,1988.7,1988.6,1.00558]
[1743016342517,1.00561,1988.6,1988.5,1.00561]
[1743016343026,2.94549,1988.7,1988.6,1.00561]
[1743016343215,1.00561,1988.6,1988.5,1.00564]
[1743016343416,1.9399,1988.7,1988.4,1.8672]
[1743016343613,1.9399,1988.7,1988.5,1.00565]
[1743016344013,2.9455,1988.7,1988.5,1.00565]
[1743016344214,2.9455,1988.7,1988.5,2.96705]
[1743016344720,1.00561,1988.6,1988.5,2.96705]
[1743016348130,2.94549,1988.7,1988.6,1.00561]
[1743016349025,1.9399,1988.7,1988.5,1.9614]
[1743016349228,1.9399,1988.7,1988.4,1.8672]
[1743016349229,1.00566,1988.5,1988.4,1.8672]
[1743016349525,1.87133996,1988.8,1988.4,1.8672]
[1743016349730,0.00753996,1988.8,1988.7,1.00556]
[1743016350226,0.00753996,1988.8,1988.7,43.74056]
[1743016350532,6.7778,1989.4,1988.8,2.51376]
[1743016350733,1.00534,1989.2,1989.1,1.00534]
[1743016350931,1.00535,1989.1,1989.0,3.9426]
[1743016351233,1.00535,1989.1,1989.0,4.948]
[1743016351428,1.00535,1989.1,1989.0,3.9426]
[1743016351629,1.00535,1989.1,1989.0,4.948]
[1743016352135,1.00535,1989.1,1989.0,3.9426]
[1743016352434,1.00535,1989.1,1989.0,4.948]
[1743016352930,1.00535,1989.1,1989.0,3.9426]
[1743016353832,1.00535,1989.1,1989.0,4.948]
[1743016354425,1.00535,1989.1,1989.0,3.9426]
[1743016355434,1.00535,1989.1,1989.0,4.948]
[1743016356025,1.00535,1989.1,1989.0,3.9426]
[1743016356627,1.00535,1989.1,1989.0,4.948]
[1743016356933,1.00535,1989.1,1989.0,3.9426]
[1743016357330,2.97495,1989.1,1989.0,3.9426]
[1743016357929,1.0054,1989.0,1988.9,0.00753996]
[1743016358127,1.0054,1989.0,1988.8,1.9023]
[1743016358128,5.1872,1989.0,1988.3,1.8522]
[1743016358429,5.1872,1989.0,1988.1,3.2078]
[1743016358430,1.00581,1988.2,1988.1,3.2078]
[1743016358940,1.00596,1987.9,1987.8,1.8522]
[1743016359138,1.00601,1987.8,1987.7,50.695]
[1743016359430,2.98541,1987.8,1987.7,0.00753996]
[1743016360231,1.00632,1987.2,1987.1,2.0129]
[1743016360431,1.00632,1987.2,1987.1,3.8985]
[1743016360632,1.00632,1987.2,1987.1,1.8856]
[1743016360832,1.00647,1986.9,1986.8,5.083]
[1743016361139,1.9977,1987.2,1986.8,1.8752]
[1743016361333,1.00647,1987.0,1986.8,1.8752]
[1743016361534,1.00647,1986.9,1986.8,1.8752]
[1743016361933,1.00652,1986.8,1986.7,11.74830886]
[1743016362133,3.00422,1986.8,1986.7,11.74830886]
[1743016362636,3.00422,1986.8,1986.7,0.00753996]
[1743016363339,6.57422,1986.8,1986.7,0.00753996]
[1743016364032,1.0067,1986.5,1986.3,1.00673]
[1743016364227,1.00672,1986.4,1986.3,1.9487]
[1743016364533,1.00676,1986.4,1986.2,53.71859994]
[1743016364735,1.9719,1986.3,1986.2,53.71859994]
[1743016364935,2.97867,1986.3,1986.2,53.71859994]
[1743016365132,2.97867,1986.3,1986.2,52.71180994]
[1743016365340,2.97867,1986.3,1986.2,3.02062994]
[1743016365535,1.9719,1986.3,1986.2,3.02062994]
[1743016365945,2.99133456,1986.3,1986.2,3.02062994]
[1743016366243,2.99133456,1986.3,1986.2,9.94e-06]
[1743016366933,5.19236456,1986.3,1985.4,44.40407323]
[1743016367136,1.00718,1985.5,1985.4,5.46052637]
[1743016367330,4.57818,1985.5,1985.4,5.46052637]
[1743016367535,1.9642,1985.5,1985.4,5.46052637]
[1743016367733,2.97138,1985.5,1985.4,5.46052637]
[1743016368032,2.97138,1985.5,1985.1,9.44]
[1743016368033,1.00733,1985.2,1985.1,9.44]
[1743016368233,1.00733,1985.2,1985.1,10.01]
[1743016368445,3.572,1985.2,1985.1,10.01]
[1743016368740,5.47153,1985.2,1985.1,10.01]
[1743016369042,5.47153,1985.2,1985.1,0.84]
[1743016369043,9.96769185,1985.2,1985.1,0.84]
[1743016369247,5.48419456,1985.2,1985.1,0.84]
[1743016369542,1.00748,1984.9,1984.8,11.34661]
[1743016369739,1.00748,1984.9,1984.8,11.35]
[1743016370134,1.02014456,1984.9,1984.8,11.35]
[1743016370342,1.02014456,1984.9,1984.8,16.3876]
[1743016370532,6.8088,1985.0,1984.8,11.35]
[1743016370738,1.14424993,1984.9,1984.8,11.35]
[1743016371235,0.13676993,1984.9,1984.8,11.35]
[1743016371437,0.13676993,1984.9,1984.8,17.39513]
[1743016371641,0.13676993,1984.9,1984.8,20.60293]
[1743016371945,0.13676993,1984.9,1984.8,60.3954]
[1743016372144,0.13676993,1984.9,1984.8,61.40293]
[1743016372347,0.13676993,1984.9,1984.8,50.05293]
[1743016372639,1.87343996,1985.6,1984.8,52.6584]
[1743016372845,1.0072,1985.5,1984.9,6.9778]
[1743016373040,0.00753996,1985.6,1985.1,3.2078]
[1743016373238,0.00753996,1985.6,1985.5,1.00718]
[1743016373633,0.00753996,1985.6,1985.5,6.04478]
[1743016373834,1.01466996,1985.6,1985.5,5.0376]
[1743016374039,1.01466996,1985.6,1985.1,3.2078]
[1743016374040,5.71533996,1985.6,1985.1,3.2078]
[1743016374246,3.2078,1985.2,1984.7,1.9402]
[1743016374441,3.2078,1985.0,1984.7,1.9402]
[1743016374641,1.8515,1984.9,1984.7,1.9402]
[1743016375039,1.00753,1984.8,1984.7,1.9402]
[1743016375535,4.21533,1984.8,1984.7,1.9402]
[1743016375740,3.2078,1984.8,1984.7,2.94778]
[1743016375941,4.21533,1984.8,1984.7,1.9402]
[1743016376242,4.21525,1985.0,1984.7,6.9778]
[1743016376437,1.0075,1984.9,1984.7,7.98536]
[1743016376646,5.1751,1985.0,1984.7,6.9778]
[1743016376843,6.18256,1985.0,1984.7,6.9778]
[1743016377150,6.18256,1985.0,1984.8,5.0376]
[1743016377151,1.00748,1984.9,1984.8,5.0376]
[1743016377349,2.97478,1984.9,1984.8,5.0376]
[1743016378843,1.00753,1984.8,1984.7,1.9402]
[1743016379040,2.99873,1984.8,1984.7,6.9778]
[1743016379241,6.20653,1984.8,1984.7,6.9778]
[1743016379838,6.20653,1984.8,1984.7,2.0402]
[1743016380145,1.00768,1984.5,1984.4,2.0157]
[1743016380442,5.199,1984.8,1984.4,2.0157]
[1743016380647,1.00763,1984.7,1984.5,5.0376]
[1743016380955,1.00768,1984.5,1984.4,2.0157]
[1743016381151,1.00808,1983.8,1983.6,3.2078]
[1743016381352,1.00779,1984.3,1983.7,3.2078]
[1743016381647,3.2078,1983.8,1983.6,5.0376]
[1743016381847,5.72753,1984.1,1983.4,2.0092]
[1743016382050,3.2078,1983.9,1983.4,3.2078]
[1743016382347,1.9326,1984.0,1983.5,7.063]
[1743016382348,5.6786,1984.0,1983.5,7.063]
[1743016382545,1.00814,1983.6,1983.5,7.063]
[1743016382945,3.2078,1983.9,1983.5,7.063]
[1743016383345,1.00814,1983.6,1983.5,7.063]
[1743016383552,3.2078,1983.9,1983.6,5.0376]
[1743016383849,5.73500953,1984.2,1983.7,2.0254]
[1743016384056,2.51973,1984.1,1983.7,10.2708]
[1743016384346,1.00804,1983.8,1983.7,2.0254]
[1743016384755,3.761,1983.9,1983.7,7.063]
[1743016384954,6.97935953,1984.2,1983.8,8.2454]
[1743016385149,6.97735953,1984.2,1983.9,1.9558]
[1743016385356,3.21535953,1984.2,1983.9,6.9934]
[1743016385545,6.97635953,1984.2,1983.9,6.9934]
[1743016386155,3.21535953,1984.2,1984.0,5.0376]
[1743016386350,3.21535953,1984.2,1984.1,1.9558]
[1743016387054,0.00755953,1984.2,1984.1,6.9934]
[1743016387757,6.9668,1984.8,1984.1,10.9634]
[1743016387956,1.9023,1984.7,1984.2,5.0376]
[1743016388156,6.9668,1984.8,1984.3,1.8986]
[1743016388453,6.9668,1984.8,1984.3,6.9362]
[1743016388751,6.9668,1984.8,1984.4,5.04515953]
[1743016388752,0.00755953,1984.7,1984.4,5.04515953]
[1743016389052,0.00755953,1984.7,1984.5,1.8986]
[1743016389253,3.2078,1984.6,1984.5,6.9362]
[1743016389451,3.2078,1984.6,1984.5,1.8986]
[1743016389653,0.00755953,1984.7,1984.5,6.9362]
[1743016389959,0.00755953,1984.7,1984.6,5.0376]
[1743016391143,0.00755953,1984.7,1984.5,5.1064]
[1743016391344,1.9023,1985.4,1984.5,5.1064]
[1743016391345,3.2078,1985.4,1984.6,5.0376]
[1743016391546,5.2096,1985.6,1984.7,8.9606]
[1743016391753,3.2078,1985.6,1985.0,3.2078]
[1743016391951,3.2078,1986.0,1985.2,3.2078]
[1743016392249,3.2078,1986.0,1985.1,2.0098]
[1743016392250,3.2078,1985.8,1985.3,2.0098]
[1743016392450,3.2078,1985.8,1985.4,0.00755953]
[1743016392751,0.00755953,1985.7,1985.5,3.2078]
[1743016392950,0.00755953,1985.7,1985.6,2.0098]
[1743016393151,0.00755953,1985.7,1985.6,7.0474]
[1743016394151,3.2078,1986.1,1985.6,7.0474]
[1743016394347,6.9528,1986.3,1985.7,5.0376]
[1743016394661,3.2078,1986.3,1985.8,3.2078]
[1743016394861,1.00697,1986.0,1985.9,2.99476]
[1743016395049,1.00697,1986.0,1985.9,7.0254]
[1743016395463,1.00697,1986.0,1985.9,8.03237]
[1743016395760,1.00692,1986.0,1985.9,8.03237]
[1743016395947,1.00692,1986.0,1985.9,7.0254]
[1743016396450,1.00692,1986.0,1985.9,8.03237]
[1743016396650,1.00692,1986.0,1985.9,7.0254]
[1743016397350,4.21472,1986.0,1985.9,7.0254]
[1743016397656,5.59295953,1986.1,1985.9,7.0254]
[1743016397854,3.73355953,1986.1,1985.9,7.0254]
[1743016398052,0.00755953,1986.1,1986.0,5.0376]
[1743016399649,1.01442953,1986.1,1986.0,5.0376]
[1743016400052,1.00718,1985.5,1985.4,0.00755953]
[1743016400252,1.00718,1985.5,1985.4,3.48734953]
[1743016400563,4.21498,1985.5,1985.4,3.48734953]
[1743016400950,1.00718,1985.5,1985.4,5.32654953]
[1743016401157,4.21498,1985.5,1985.4,5.32654953]
[1743016402062,1.00718,1985.5,1985.4,5.32654953]
[1743016405357,1.00718,1985.5,1985.4,6.33377953]
[1743016405762,1.00716,1985.6,1985.5,1.00714]
[1743016405966,1.00716,1985.6,1985.5,6.40523]
[1743016406165,8.34733,1986.0,1985.5,7.91592]
[1743016406461,1.00707,1985.8,1985.7,1.00705]
[1743016406664,1.00707,1985.8,1985.7,1.8807]
[1743016406961,2.52476953,1986.1,1985.7,5.36049]
[1743016407166,1.00697,1986.0,1985.9,1.00694]
[1743016407462,1.00697,1986.0,1985.8,3.47979]
[1743016407659,1.00697,1986.0,1984.3,1.00775]
[1743016407660,1.00778,1984.4,1984.3,1.00775]
[1743016407855,1.00779,1984.4,1984.0,1.976]
[1743016408159,1.00773,1984.5,1984.1,9.6279]
[1743016408365,1.00773,1984.5,1984.4,1.0077]
[1743016408967,3.21535953,1984.6,1984.3,2.52701953]
[1743016409165,1.00771,1984.5,1984.4,2.90608]
[1743016409370,3.21535953,1984.6,1984.3,1.00779953]
[1743016409371,1.00774,1984.4,1984.3,1.00779953]
[1743016409659,4.21554,1984.4,1984.3,1.00779953]
[1743016409865,4.21554,1984.4,1984.3,9.53e-06]
[1743016410261,4.21554,1984.4,1984.3,1.00779953]
[1743016411359,4.21554,1984.4,1984.3,9.53e-06]
[1743016411558,4.21554,1984.4,1984.3,1.00779953]
[1743016411761,4.21554,1984.4,1984.3,9.53e-06]
[1743016411958,1.00771,1984.5,1984.4,1.00774]
[1743016412262,1.00771,1984.5,1984.4,2.90614]
[1743016412764,1.01518953,1984.6,1984.5,1.00768]
[1743016412964,0.00755953,1984.6,1984.5,4.77938]
[1743016413160,0.00755953,1984.6,1984.5,7.27938]
[1743016413862,0.00755953,1984.6,1984.5,4.77938]
[1743016414563,1.00757,1984.8,1984.5,4.77938]
[1743016414564,1.00757,1984.8,1984.7,1.00758]
[1743016416168,1.01507953,1984.9,1984.8,1.00753]
[1743016416568,1.01507953,1984.9,1984.7,2.0166]
[1743016416569,1.00753,1984.8,1984.7,2.0166]
[1743016416869,1.00753,1984.8,1984.3,9.53e-06]
[1743016416870,1.00774,1984.4,1984.3,1.00779953]
[1743016417869,4.21552,1984.5,1984.4,1.00774]
[1743016418067,4.21552,1984.5,1984.4,3.02434]
[1743016418859,1.00772,1984.5,1984.4,3.02434]
[1743016419065,1.00768,1984.6,1984.5,1.00763]
[1743016421458,3.2078,1984.7,1984.6,1.00763]
[1743016421661,0.00755953,1984.9,1984.8,1.00753]
[1743016422167,1.00734,1985.3,1985.2,1.00729]
[1743016422465,4.21506,1985.4,1985.3,1.00728]
[1743016422666,1.0073,1985.3,1985.2,1.00728]
[1743016422870,1.0073,1985.3,1985.2,2.86728]
[1743016425575,1.01483953,1985.4,1985.3,1.00728]
[1743016426867,0.00755953,1985.4,1985.3,1.00728]
[1743016427374,1.01478953,1985.4,1985.3,1.00728]
[1743016427964,0.00755953,1985.4,1985.3,1.00728]
[1743016428168,1.01478953,1985.4,1985.3,1.00728]
[1743016428968,0.00755953,1985.4,1985.3,1.00728]
[1743016429480,1.01478953,1985.4,1985.3,1.00728]
[1743016430473,4.22258953,1985.4,1985.3,1.00728]
[1743016430676,1.01478953,1985.4,1985.3,1.00728]
[1743016434676,0.00755953,1985.4,1985.3,1.00728]
[1743016435780,10.98943041,1985.4,1984.1,3.2078]
[1743016435972,1.00762,1984.7,1984.4,1.8605]
[1743016436279,4.21548,1984.5,1984.4,1.8605]
[1743016436482,4.21548,1984.5,1984.4,1.9264]
[1743016438878,1.00774,1984.4,1984.3,9.53e-06]
[1743016439081,2.96894,1984.4,1984.3,9.53e-06]
[1743016439281,5.46894,1984.4,1984.3,9.53e-06]
[1743016440383,2.96894,1984.4,1984.3,9.53e-06]
[1743016440685,1.00789,1984.1,1984.0,1.9607]
[1743016440873,4.21569,1984.1,1984.0,1.9607]
[1743016441683,4.21569,1984.1,1984.0,2.96864]
[1743016441879,0.00755953,1984.2,1984.1,1.00789]
[1743016442182,0.00755953,1984.2,1984.1,4.21569]
[1743016442387,0.00755953,1984.2,1984.1,6.71569]
[1743016442571,1.00761,1984.7,1984.2,1.00784]
[1743016442773,2.86617,1984.8,1984.7,1.00758]
[1743016442985,1.00761,1984.7,1984.6,1.00762]
[1743016443177,1.00761,1984.7,1984.5,1.00765]
[1743016443488,1.00761,1984.7,1984.6,2.0325]
[1743016444480,1.00774,1984.4,1984.3,4.84179]
[1743016444874,1.00774,1984.4,1984.3,3.84179]
[1743016445782,1.00774,1984.4,1984.3,2.834]
[1743016445997,1.00774,1984.4,1984.3,3.84179]
[1743016446177,1.00779,1984.3,1984.2,3.0152]
[1743016446379,4.21559,1984.3,1984.2,2.0074]
[1743016446976,4.21559,1984.3,1984.2,3.01524]
[1743016447179,4.21551,1984.5,1984.4,1.00774]
[1743016447380,3.7911,1984.6,1984.5,1.00766]
[1743016447381,1.00765,1984.6,1984.5,1.00766]
[1743016447582,1.0077,1984.5,1984.4,1.00771]
[1743016447885,1.00765,1984.6,1984.5,1.00765]
[1743016448191,1.00768,1984.5,1984.4,1.0077]
[1743016448391,1.00774,1984.4,1984.3,1.00775]
[1743016448591,1.00779,1984.3,1984.2,4.8228]
[1743016448992,1.00779,1984.3,1984.2,3.815]
[1743016449193,1.00784,1984.2,1984.1,1.00788]
[1743016449380,1.00789,1984.1,1984.0,2.89629]
[1743016449585,1.00788,1984.2,1984.1,1.00788]
[1743016449890,3.2078,1984.4,1984.3,1.00779]
[1743016450090,1.00774,1984.4,1984.3,1.00779]
[1743016450390,3.2078,1984.6,1984.4,1.00773]
[1743016450391,1.00772,1984.5,1984.4,1.00773]
[1743016450597,4.21545,1984.6,1984.5,1.00768]
[1743016450889,1.00765,1984.6,1984.5,1.00768]
[1743016451294,1.00772,1984.5,1984.4,1.0077]
[1743016451683,1.00767,1984.6,1984.5,1.00765]
[1743016452779,1.00772,1984.5,1984.4,1.0077]
[1743016452984,1.00794,1984.0,1983.9,0.00755953]
[1743016453597,3.00824,1984.0,1983.9,0.00755953]
[1743016454884,6.81824,1984.0,1983.9,0.00755953]
[1743016455700,1.00794,1984.0,1983.9,0.00755953]
[1743016455996,2.95614,1984.0,1983.9,0.00755953]
[1743016456181,1.00794,1984.0,1983.9,0.00755953]
[1743016456387,1.00794,1984.0,1983.9,1.01554953]
[1743016456689,1.00794,1984.0,1983.9,0.00755953]
[1743016457795,4.21572,1984.1,1984.0,1.00794]
[1743016458794,2.51944,1984.4,1984.1,1.00789]
[1743016458795,1.00788,1984.2,1984.1,1.00789]
[1743016459293,3.2078,1984.4,1984.1,1.00789]
[1743016459294,4.21558,1984.4,1984.1,1.00789]
[1743016459495,1.00778,1984.4,1984.3,1.00779]
[1743016459889,1.00779,1984.3,1984.2,2.90491]
[1743016460200,1.00779,1984.3,1984.2,1.8971]
[1743016460394,1.00784,1984.2,1984.1,1.8827]
[1743016460589,1.00784,1984.2,1984.1,2.89059]
[1743016460794,1.00784,1984.2,1984.1,1.8827]
[1743016461496,1.00784,1984.2,1983.9,1.01551953]
[1743016461497,3.2078,1984.2,1983.9,0.00755953]
[1743016461694,1.00792,1984.1,1984.0,1.00792]
[1743016461896,1.00794,1984.0,1983.9,2.85552953]
[1743016462094,1.00794,1984.0,1983.9,1.84755953]
[1743016462597,4.21574,1984.0,1983.9,1.84755953]
[1743016467609,5.72732,1984.3,1983.9,2.85554953]
[1743016467901,3.2078,1984.3,1984.0,2.51985]
[1743016468108,5.7269,1984.6,1984.1,4.36973]
[1743016468294,1.00779,1984.4,1984.2,4.729]
[1743016468498,1.00779,1984.3,1984.2,4.729]
[1743016468901,1.00779,1984.3,1984.2,1.85]
[1743016469209,2.88189,1984.3,1984.2,1.85]
[1743016469705,1.00779,1984.3,1984.2,1.85]
[1743016470502,1.00779,1984.3,1984.2,2.85784]
[1743016470706,1.00779,1984.3,1984.2,1.85]
[1743016472613,4.21559,1984.4,1984.3,1.00779]
[1743016472915,1.00779,1984.4,1984.3,1.00779]
[1743016473103,1.00771,1984.5,1984.4,1.00768]
[1743016474601,1.00778,1984.4,1984.3,1.00774]
[1743016475101,1.00772,1984.5,1984.4,1.00768]
[1743016475305,3.21535953,1984.8,1984.7,1.00758]
[1743016475609,0.00755953,1984.8,1984.7,1.00758]
[1743016476804,1.0074,1985.1,1985.0,1.00743]
[1743016477207,3.2078,1985.3,1985.1,1.00733]
[1743016477208,1.00736,1985.2,1985.1,1.00733]
[1743016479604,1.01486953,1985.3,1985.2,1.00733]
[1743016480008,0.00755953,1985.3,1985.2,1.00733]
[1743016480406,1.01483953,1985.3,1985.2,1.00733]
[1743016481405,0.00755953,1985.3,1985.2,1.00733]
[1743016483519,1.00711,1985.7,1985.6,1.00709]
[1743016484016,4.21486,1985.8,1985.7,1.00704]
[1743016484215,2.0128,1986.0,1985.9,1.00694]
[1743016484216,3.2078,1986.0,1985.9,1.00694]
[1743016484408,1.00697,1986.0,1985.9,1.00694]
[1743016484915,1.01182082,1986.1,1986.0,1.00692]
[1743016485212,1.00708,1985.7,1985.6,4.8712]
[1743016488213,1.00708,1985.7,1985.6,1.9683]
[1743016488519,2.99648,1985.7,1985.6,1.9683]
[1743016488816,2.99648,1985.7,1985.6,2.97543]
[1743016489010,1.00708,1985.7,1985.6,2.97543]
[1743016490520,1.00708,1985.7,1985.6,4.94063]
[1743016490723,1.00708,1985.7,1985.6,3.9335]
[1743016491019,1.00708,1985.7,1985.6,4.94063]
[1743016491817,1.00706,1985.8,1985.7,1.00703]
[1743016492017,1.00706,1985.8,1985.7,2.85583]
[1743016492318,4.21486,1985.8,1985.7,1.8488]
[1743016492511,1.00728,1985.4,1985.3,1.00723]
[1743016492820,1.00721,1985.5,1985.4,1.00717]
[1743016493612,1.00721,1985.5,1985.4,1.8488]
[1743016493917,2.97101,1985.5,1985.4,2.85603]
[1743016494120,1.00721,1985.5,1985.4,2.85603]
[1743016495016,1.00716,1985.6,1985.5,1.00713]
[1743016495214,1.00712,1985.7,1985.6,1.00707]
[1743016495919,1.00712,1985.7,1985.6,2.89027]
[1743016497221,1.00712,1985.7,1985.6,4.78077]
[1743016497525,1.00712,1985.7,1985.6,3.7737]
[1743016497716,1.00712,1985.7,1985.6,4.78083]
[1743016497912,1.00712,1985.7,1985.6,1.8832]
[1743016498523,1.00713,1985.6,1985.5,3.683]
[1743016498714,5.07833,1985.6,1985.5,3.683]
[1743016498914,5.07833,1985.6,1985.3,2.94798]
[1743016498915,1.00723,1985.5,1985.4,1.00722]
[1743016499109,3.04863,1985.5,1985.4,1.9407]
[1743016499619,4.21503,1985.5,1985.4,1.9407]
[1743016499821,6.25643,1985.5,1985.4,1.9407]
[1743016501826,3.03697,1985.6,1985.4,2.6805]
[1743016502026,1.00717,1985.6,1985.5,1.00718]
[1743016502325,1.00717,1985.6,1985.5,3.08138]
[1743016502811,1.00717,1985.6,1985.5,2.0742]
[1743016503015,3.04837,1985.6,1985.5,2.0742]
[1743016503220,1.00718,1985.5,1985.4,4.4058]
[1743016503427,4.21498,1985.5,1985.4,0.7398]
[1743016504123,4.21498,1985.5,1985.0,0.00755953]
[1743016504124,2.51816,1985.4,1985.0,0.00755953]
[1743016504322,1.00738,1985.1,1985.0,0.00755953]
[1743016504723,1.00738,1985.1,1985.0,1.01498953]
[1743016504917,3.2078,1985.3,1985.0,1.97185953]
[1743016505126,5.72577,1985.5,1985.0,8.15532953]
[1743016505322,1.00733,1985.3,1985.2,1.0073]
[1743016505826,4.54382,1985.4,1985.0,5.63685953]
[1743016506025,1.00738,1985.1,1985.0,6.64427953]
[1743016506930,1.00738,1985.1,1985.0,1.97185953]
[1743016507121,4.21518,1985.1,1985.0,0.00755953]
[1743016507523,6.26708,1985.1,1985.0,0.00755953]
[1743016512330,8.76708,1985.1,1985.0,9.53e-06]
[1743016513233,12.41808,1985.1,1985.0,9.53e-06]
[1743016514132,18.24808,1985.1,1984.3,2.0825]
[1743016514324,1.00804,1983.8,1983.7,2.95574]
[1743016514828,1.00804,1983.8,1983.7,2.95579]
[1743016515030,1.00804,1983.8,1983.7,1.9477]
[1743016515228,1.00794,1984.0,1983.9,1.00795]
[1743016515635,4.22327953,1984.1,1984.0,1.00794]
[1743016516127,4.22327953,1984.1,1983.8,2.5201]
[1743016516128,1.00794,1984.0,1983.9,3.04184]
[1743016516336,1.00794,1984.0,1983.9,2.0339]
[1743016516534,1.00794,1984.0,1983.9,3.04189]
[1743016516735,1.01548953,1984.1,1984.0,1.00794]
[1743016516931,0.00755953,1984.1,1984.0,3.04184]
[1743016517537,1.01544953,1984.1,1984.0,3.04184]
[1743016517731,1.01544953,1984.1,1984.0,2.0339]
[1743016517923,1.01544953,1984.1,1984.0,3.04184]
[1743016518332,1.01544953,1984.1,1984.0,2.0339]
[1743016519337,4.22324953,1984.1,1984.0,2.0339]
[1743016520843,0.00755953,1984.1,1984.0,3.04184]
[1743016521044,4.21553,1984.5,1984.4,1.00774]
[1743016521242,1.00777,1984.4,1984.3,1.00775]
[1743016521538,1.00774,1984.4,1984.3,5.03185]
[1743016522333,1.00774,1984.4,1984.3,2.001]
[1743016522533,2.96764,1984.4,1984.3,2.001]
[1743016522940,1.00794,1984.0,1983.9,4.65498]
[1743016523140,1.00794,1984.0,1983.9,3.647]
[1743016523339,1.00794,1984.0,1983.9,1.00799]
[1743016524046,1.00785,1984.3,1984.2,1.00781]
[1743016524339,1.00789,1984.1,1984.0,3.8876]
[1743016524546,1.00789,1984.1,1984.0,1.9808]
[1743016524938,3.05989,1984.1,1984.0,1.9808]
[1743016526343,1.00809,1983.7,1983.6,0.00755953]
[1743016526548,4.21589,1983.7,1983.6,2.09055953]
[1743016528745,6.71589,1983.7,1983.6,9.53e-06]
[1743016529045,1.00844,1983.1,1982.9,1.8951]
[1743016529246,1.0084,1983.1,1982.9,1.8951]
[1743016529550,3.2078,1983.2,1982.9,1.8951]
[1743016529738,1.00845,1983.0,1982.9,1.8951]
[1743016529941,1.00845,1983.0,1982.9,2.9036]
[1743016530149,0.00755953,1983.1,1982.9,3.8479]
[1743016530342,1.00845,1983.0,1982.9,3.8479]
[1743016531050,0.00755953,1983.1,1982.9,3.8479]
[1743016531254,50.37435,1984.9,1983.4,1.00824]
[1743016531255,3.2078,1983.5,1983.4,1.00824]
[1743016531444,3.2078,1983.5,1982.9,11.27005]
[1743016531649,3.2078,1983.5,1983.0,2.52111]
[1743016531650,1.00827,1983.4,1983.0,2.52111]
[1743016531849,3.2078,1983.5,1983.4,1.00824]
[1743016532152,1.00822,1983.5,1983.4,1.00822]
[1743016532550,3.21271082,1983.6,1983.3,2.02855953]
[1743016532847,1.00824,1983.5,1983.4,2.92293]
[1743016533245,1.00824,1983.5,1983.4,1.9147]
[1743016533647,1.00824,1983.5,1983.4,2.92294]
[1743016533849,1.00824,1983.5,1983.4,1.9147]
[1743016534555,1.00824,1983.5,1983.4,4.97254]
[1743016535154,0.00491082,1983.6,1983.5,1.00819]
[1743016535352,1.01305082,1983.6,1983.5,3.05779]
[1743016535548,0.00491082,1983.6,1983.5,3.05779]
[1743016535753,0.00491082,1983.6,1983.5,6.70679]
[1743016535954,0.00491082,1983.6,1983.5,9.91459]
[1743016536366,0.00491082,1983.6,1983.5,6.70679]
[1743016536654,1.01305082,1983.6,1983.5,2.0496]
[1743016538252,1.01305082,1983.6,1983.5,3.05779]
[1743016538446,1.01305082,1983.6,1983.5,2.0496]
[1743016538651,1.01305082,1983.6,1983.5,3.05779]
[1743016538652,0.00491082,1983.6,1983.5,3.05779]
[1743016539463,7.73044,1984.1,1983.8,1.00801]
[1743016539664,1.00794,1984.0,1983.9,2.0713]
[1743016542256,2.52025,1983.7,1983.3,2.02855953]
[1743016542452,4.21604,1983.4,1983.3,0.00755953]
[1743016543461,4.21604,1983.4,1983.3,1.92985953]
[1743016544571,4.21604,1983.4,1983.3,0.00755953]
[1743016546067,6.71604,1983.4,1983.3,9.53e-06]
[1743016546273,5.04149,1983.3,1982.7,2.0519]
[1743016546474,1.00855,1982.8,1982.7,2.0519]
[1743016547163,2.92865,1982.8,1982.7,2.0519]
[1743016547465,1.00865,1982.6,1982.5,1.9958]
[1743016548060,1.00865,1982.6,1982.5,5.6368]
[1743016548263,1.00865,1982.6,1982.5,1.9958]
[1743016548465,1.00865,1982.6,1982.5,2.03876767]
[1743016549065,1.00865,1982.6,1982.5,2.08197435]
[1743016549470,1.00865,1982.6,1982.5,3.99277435]
[1743016550971,1.00865,1982.6,1982.5,1.99697435]
[1743016551174,1.0087,1982.5,1982.4,5.81e-06]
[1743016551378,4.2165,1982.5,1982.4,5.81e-06]
[1743016552281,4.2165,1982.5,1982.0,1.01363638]
[1743016552282,1.0089,1982.1,1982.0,0.00470638]
[1743016552578,1.0089,1982.1,1982.0,1.01366638]
[1743016552873,1.0089,1982.2,1982.1,1.0089]
[1743016553275,1.0089,1982.1,1982.0,1.01364638]
[1743016553463,1.0089,1982.1,1982.0,0.01226591]
[1743016554275,1.0089,1982.1,1982.0,3.04372591]
[1743016554462,7.65011,1982.4,1982.0,2.03476591]
[1743016554772,3.2078,1982.4,1982.0,8.89656591]